bitfinex-derivatives/quotes_BTCF0:USTF0_20251228
["timestamp","ask_amount","ask_price","bid_price","bid_amount"]
[1766958578132,0.05712,87633.0,87620.0,0.0685408]
[1766958578133,0.02404506,87630.0,87620.0,0.0685408]
[1766958578328,0.02404506,87629.0,87620.0,0.0685408]
[1766958578629,0.05712,87633.0,87620.0,0.0685408]
[1766958578821,0.02404505,87632.0,87620.0,0.0685408]
[1766958579022,0.02404505,87631.0,87620.0,0.0685408]
[1766958579218,0.02404505,87630.0,87620.0,0.0685408]
[1766958579522,0.02404505,87629.0,87620.0,0.0685408]
[1766958579722,0.05712,87633.0,87620.0,0.0685408]
[1766958580031,0.02404505,87632.0,87620.0,0.0685408]
[1766958580231,0.02404505,87631.0,87620.0,0.0685408]
[1766958580432,0.02404505,87630.0,87620.0,0.0685408]
[1766958580631,0.02404505,87629.0,87620.0,0.0685408]
[1766958580930,0.05712,87633.0,87620.0,0.0685408]
[1766958581132,0.02404504,87632.0,87620.0,0.0685408]
[1766958581433,0.02404504,87631.0,87620.0,0.0685408]
[1766958581730,0.02404504,87630.0,87620.0,0.0685408]
[1766958581919,0.02404504,87629.0,87620.0,0.0685408]
[1766958582124,0.05712,87633.0,87620.0,0.0685408]
[1766958582322,0.02404489,87632.0,87620.0,0.0685408]
[1766958582524,0.02404489,87631.0,87620.0,0.0685408]
[1766958582725,0.02404489,87630.0,87620.0,0.0685408]
[1766958582928,0.02404489,87629.0,87620.0,0.0685408]
[1766958583232,0.02404485,87628.0,87620.0,0.0685408]
[1766958583429,0.02404485,87627.0,87620.0,0.0685408]
[1766958583633,0.05712,87633.0,87620.0,0.0685408]
[1766958583832,0.02404485,87632.0,87620.0,0.0685408]
[1766958584131,0.02404485,87631.0,87620.0,0.0685408]
[1766958584331,0.02404485,87630.0,87620.0,0.0685408]
[1766958584532,0.02404485,87629.0,87620.0,0.0685408]
[1766958584833,0.02404485,87628.0,87620.0,0.0685408]
[1766958585132,0.02404485,87627.0,87620.0,0.0685408]
[1766958585332,0.05712,87633.0,87620.0,0.0685408]
[1766958585528,0.02404475,87632.0,87622.0,0.0114205]
[1766958585733,0.02404475,87631.0,87620.0,0.05712]
[1766958585935,0.02404475,87630.0,87620.0,0.07712]
[1766958586137,0.02404475,87629.0,87620.0,0.07712]
[1766958586328,0.02404475,87628.0,87620.0,0.07712]
[1766958586633,0.02404475,87627.0,87620.0,0.07712]
[1766958586834,0.05729121,87635.0,87620.0,0.07712]
[1766958587033,0.0240447,87634.0,87620.0,0.07712]
[1766958587232,0.0240447,87633.0,87620.0,0.07712]
[1766958587429,0.0240447,87632.0,87620.0,0.07712]
[1766958587628,0.0240447,87631.0,87620.0,0.07712]
[1766958587834,0.0240447,87630.0,87620.0,0.07712]
[1766958588034,0.0240447,87629.0,87620.0,0.07712]
[1766958588235,0.0240447,87628.0,87620.0,0.07712]
[1766958588435,0.0240447,87627.0,87620.0,0.07712]
[1766958588637,0.05729121,87635.0,87620.0,0.07712]
[1766958588836,0.02404473,87634.0,87620.0,0.07712]
[1766958589036,0.02404473,87633.0,87620.0,0.07712]
[1766958589236,0.02404473,87632.0,87620.0,0.07712]
[1766958589451,0.02404473,87631.0,87620.0,0.07712]
[1766958589646,0.02404473,87630.0,87620.0,0.07712]
[1766958589948,0.02404473,87629.0,87620.0,0.07712]
[1766958590248,0.02404473,87628.0,87620.0,0.07712]
[1766958590447,0.02404473,87627.0,87620.0,0.07712]
[1766958590647,0.05729121,87635.0,87620.0,0.07712]
[1766958590838,0.02404473,87634.0,87620.0,0.07712]
[1766958591035,0.02404473,87633.0,87620.0,0.07712]
[1766958591241,0.02404473,87632.0,87620.0,0.07712]
[1766958591441,0.02404473,87631.0,87620.0,0.07712]
[1766958591641,0.02404473,87630.0,87620.0,0.07712]
[1766958591848,0.02404473,87629.0,87620.0,0.07712]
[1766958592050,0.02404473,87628.0,87620.0,0.07712]
[1766958592349,0.02404473,87627.0,87620.0,0.07712]
[1766958592549,0.05729121,87635.0,87620.0,0.07712]
[1766958592748,0.02404474,87634.0,87620.0,0.07712]
[1766958593048,0.02404474,87633.0,87620.0,0.07712]
[1766958593248,0.02404474,87632.0,87620.0,0.07712]
[1766958593450,0.02404474,87631.0,87620.0,0.07712]
[1766958593753,0.02404474,87630.0,87620.0,0.07712]
[1766958593952,0.02404474,87629.0,87620.0,0.07712]
[1766958594153,0.05729121,87635.0,87620.0,0.07712]
[1766958594452,0.02404472,87634.0,87620.0,0.07712]
[1766958594649,0.02404472,87633.0,87620.0,0.07712]
[1766958594839,0.02404472,87632.0,87620.0,0.07712]
[1766958595040,0.02404472,87631.0,87620.0,0.07712]
[1766958595243,0.02404472,87630.0,87620.0,0.07712]
[1766958595450,0.02404472,87629.0,87620.0,0.07712]
[1766958595653,0.05729121,87635.0,87620.0,0.07712]
[1766958595853,0.02404473,87634.0,87620.0,0.07712]
[1766958596054,0.02404473,87633.0,87620.0,0.07712]
[1766958596251,0.02404473,87632.0,87620.0,0.07712]
[1766958596548,0.02404473,87631.0,87620.0,0.07712]
[1766958596748,0.05729121,87635.0,87620.0,0.07712]
[1766958596749,0.02404473,87630.0,87620.0,0.07712]
[1766958596946,0.02404473,87629.0,87620.0,0.07712]
[1766958597245,0.05729121,87635.0,87620.0,0.07712]
[1766958597449,0.02404473,87634.0,87620.0,0.07712]
[1766958597647,0.02404473,87633.0,87620.0,0.07712]
[1766958597847,0.02404473,87632.0,87620.0,0.07712]
[1766958598054,0.02404473,87631.0,87620.0,0.07712]
[1766958598254,0.02404473,87630.0,87620.0,0.07712]
[1766958598453,0.02404473,87629.0,87620.0,0.07712]
[1766958598654,0.05729121,87635.0,87620.0,0.07712]
[1766958598856,0.02404473,87634.0,87620.0,0.07712]
[1766958599053,0.05729121,87635.0,87620.0,0.07712]
[1766958599054,0.02404473,87633.0,87620.0,0.07712]
[1766958599253,0.02404473,87632.0,87620.0,0.07712]
[1766958599453,0.02404473,87631.0,87620.0,0.07712]
[1766958599749,0.02404473,87630.0,87620.0,0.07712]
[1766958599949,0.02404473,87629.0,87620.0,0.07712]
[1766958600149,0.05729121,87635.0,87620.0,0.07712]
[1766958600351,0.02404472,87634.0,87620.0,0.07712]
[1766958600546,0.02404472,87633.0,87620.0,0.19188833]
[1766958600752,0.05729121,87635.0,87623.0,0.0114204]
[1766958603060,0.05729121,87635.0,87620.0,0.05712]
[1766958603256,0.05729121,87635.0,87620.0,0.08712]
[1766958624377,0.05729121,87635.0,87627.0,0.00106774]
[1766958625378,0.05729121,87635.0,87620.0,0.05712]
[1766958625579,0.05729121,87635.0,87620.0,0.08712]
[1766958625778,0.11476833,87630.0,87620.0,0.08712]
[1766958626178,0.11476833,87630.0,87620.0,0.06335973]
[1766958626672,0.0239808,87629.0,87620.0,0.06335973]
[1766958626880,0.11476833,87630.0,87620.0,0.06335973]
[1766958627177,0.02398083,87629.0,87620.0,0.06335973]
[1766958627375,0.11476833,87630.0,87620.0,0.06335973]
[1766958630484,0.0114194,87632.0,87620.0,0.06335973]
[1766958630686,0.023979,87631.0,87620.0,0.06335973]
[1766958630976,0.023979,87630.0,87620.0,0.06335973]
[1766958631277,0.0114194,87632.0,87620.0,0.06335973]
[1766958631578,0.02397914,87631.0,87620.0,0.06335973]
[1766958631880,0.02397914,87630.0,87617.0,0.00017121]
[1766958632074,0.0114194,87632.0,87617.0,0.00017121]
[1766958632075,0.0114194,87632.0,87617.0,0.06712]
[1766958632280,0.02397908,87631.0,87617.0,0.06712]
[1766958632481,0.02397908,87630.0,87617.0,0.06712]
[1766958632778,0.0114194,87632.0,87617.0,0.06712]
[1766958632973,0.02412518,87631.0,87617.0,0.06712]
[1766958633178,0.02412518,87630.0,87617.0,0.06712]
[1766958633380,0.02412518,87629.0,87617.0,0.06712]
[1766958633581,0.02412518,87628.0,87617.0,0.06712]
[1766958633781,0.0114194,87632.0,87617.0,0.06712]
[1766958633983,0.02412487,87631.0,87617.0,0.06712]
[1766958634186,0.02412487,87630.0,87617.0,0.06712]
[1766958634370,0.02412487,87629.0,87617.0,0.06712]
[1766958634573,0.02412487,87628.0,87617.0,0.06712]
[1766958634782,0.06871011,87635.0,87617.0,0.06712]
[1766958634984,0.0241245,87634.0,87617.0,0.06712]
[1766958635179,0.0241245,87633.0,87617.0,0.06712]
[1766958635380,0.0241245,87632.0,87617.0,0.06712]
[1766958635683,0.0241245,87631.0,87617.0,0.06712]
[1766958635890,0.0241245,87630.0,87617.0,0.06712]
[1766958636186,0.0241245,87629.0,87617.0,0.06712]
[1766958636482,0.0241245,87628.0,87617.0,0.06712]
[1766958636680,0.0241245,87627.0,87617.0,0.06712]
[1766958636882,0.06871011,87635.0,87617.0,0.06712]
[1766958637082,0.024124,87634.0,87617.0,0.06712]
[1766958637382,0.024124,87633.0,87617.0,0.06712]
[1766958637578,0.024124,87632.0,87617.0,0.06712]
[1766958637774,0.024124,87631.0,87617.0,0.06712]
[1766958637971,0.024124,87630.0,87617.0,0.06712]
[1766958638188,0.024124,87629.0,87617.0,0.06712]
[1766958638484,0.024124,87628.0,87617.0,0.06712]
[1766958638684,0.024124,87627.0,87617.0,0.06712]
[1766958638884,0.0114193,87633.0,87617.0,0.06712]
[1766958639085,0.02412364,87632.0,87617.0,0.06712]
[1766958639285,0.02412364,87631.0,87617.0,0.06712]
[1766958639585,0.02412364,87630.0,87617.0,0.06712]
[1766958639789,0.02412364,87629.0,87617.0,0.06712]
[1766958639989,0.02412364,87628.0,87617.0,0.06712]
[1766958640286,0.02412364,87627.0,87617.0,0.06712]
[1766958640484,0.0114193,87633.0,87617.0,0.06712]
[1766958640684,0.02412343,87632.0,87617.0,0.06712]
[1766958640885,0.02412343,87631.0,87617.0,0.06712]
[1766958641086,0.02412343,87630.0,87617.0,0.06712]
[1766958641281,0.02412343,87629.0,87617.0,0.06712]
[1766958641486,0.02412343,87628.0,87617.0,0.06712]
[1766958641685,0.0114193,87633.0,87617.0,0.06712]
[1766958641686,0.02412343,87627.0,87617.0,0.06712]
[1766958641888,0.0114193,87633.0,87617.0,0.06712]
[1766958642091,0.02412357,87632.0,87617.0,0.06712]
[1766958642385,0.02412357,87631.0,87617.0,0.06712]
[1766958642684,0.02412357,87630.0,87617.0,0.06712]
[1766958642887,0.02412357,87629.0,87617.0,0.06712]
[1766958643081,0.02412357,87628.0,87617.0,0.06712]
[1766958643287,0.0114193,87633.0,87617.0,0.06712]
[1766958643489,0.02412341,87632.0,87617.0,0.06712]
[1766958643782,0.02412341,87631.0,87617.0,0.06712]
[1766958643988,0.02412341,87630.0,87617.0,0.06712]
[1766958644187,0.02412341,87629.0,87617.0,0.06712]
[1766958644380,0.0114193,87633.0,87617.0,0.06712]
[1766958644582,0.02412354,87632.0,87617.0,0.06712]
[1766958644782,0.02412354,87631.0,87617.0,0.06712]
[1766958644995,0.02412354,87630.0,87617.0,0.06712]
[1766958645287,0.0114193,87633.0,87617.0,0.06712]
[1766958645288,0.02412354,87629.0,87617.0,0.06712]
[1766958645490,0.0114193,87633.0,87617.0,0.06712]
[1766958645694,0.02412369,87632.0,87617.0,0.06712]
[1766958645891,0.02412369,87631.0,87617.0,0.06712]
[1766958646094,0.02412369,87630.0,87617.0,0.06712]
[1766958646276,0.02412369,87629.0,87617.0,0.06712]
[1766958646481,0.0114193,87633.0,87617.0,0.06712]
[1766958646781,0.02412388,87632.0,87617.0,0.06712]
[1766958646982,0.02412388,87631.0,87617.0,0.06712]
[1766958647183,0.02412388,87630.0,87617.0,0.06712]
[1766958647391,0.02412388,87629.0,87617.0,0.06712]
[1766958647593,0.0114193,87633.0,87617.0,0.06712]
[1766958647791,0.02412411,87632.0,87617.0,0.06712]
[1766958647994,0.02412411,87631.0,87617.0,0.06712]
[1766958648192,0.02412411,87630.0,87617.0,0.06712]
[1766958648491,0.02412411,87629.0,87617.0,0.06712]
[1766958648684,0.0114193,87633.0,87617.0,0.06712]
[1766958648881,0.02412437,87632.0,87617.0,0.06712]
[1766958649093,0.02412437,87631.0,87617.0,0.06712]
[1766958649293,0.02412437,87630.0,87617.0,0.06712]
[1766958649489,0.02412437,87629.0,87617.0,0.06712]
[1766958649689,0.0114193,87633.0,87617.0,0.06712]
[1766958649894,0.02412469,87632.0,87617.0,0.06712]
[1766958650093,0.02412469,87631.0,87617.0,0.06712]
[1766958650394,0.02412469,87630.0,87617.0,0.06712]
[1766958650595,0.02412469,87629.0,87617.0,0.06712]
[1766958650794,0.0114193,87633.0,87617.0,0.06712]
[1766958650982,0.02412507,87632.0,87617.0,0.06712]
[1766958651180,0.02412507,87631.0,87617.0,0.06712]
[1766958651382,0.02412507,87630.0,87617.0,0.06712]
[1766958651583,0.02412507,87629.0,87617.0,0.06712]
[1766958651786,0.0114193,87633.0,87617.0,0.06712]
[1766958651995,0.02412549,87632.0,87617.0,0.06712]
[1766958652188,0.02412549,87631.0,87617.0,0.06712]
[1766958652390,0.02412549,87630.0,87617.0,0.06712]
[1766958652688,0.02412549,87629.0,87617.0,0.06712]
[1766958652888,0.0114193,87633.0,87617.0,0.06712]
[1766958653084,0.02412599,87632.0,87617.0,0.06712]
[1766958653390,0.02412599,87631.0,87617.0,0.06712]
[1766958653592,0.02412599,87630.0,87617.0,0.06712]
[1766958653791,0.02412599,87629.0,87617.0,0.06712]
[1766958653996,0.02412599,87628.0,87617.0,0.06712]
[1766958654197,0.0114193,87633.0,87617.0,0.06712]
[1766958654389,0.02412742,87632.0,87617.0,0.06712]
[1766958654589,0.02412742,87631.0,87617.0,0.06712]
[1766958654790,0.02412742,87630.0,87617.0,0.06712]
[1766958654990,0.02412742,87629.0,87617.0,0.06712]
[1766958655195,0.02412742,87628.0,87617.0,0.06712]
[1766958655398,0.0114193,87633.0,87617.0,0.06712]
[1766958655598,0.02412863,87632.0,87617.0,0.06712]
[1766958655801,0.02412863,87631.0,87617.0,0.06712]
[1766958656097,0.02412863,87630.0,87617.0,0.06712]
[1766958656394,0.02412863,87629.0,87617.0,0.06712]
[1766958656593,0.02412863,87628.0,87617.0,0.06712]
[1766958656796,0.0114193,87633.0,87617.0,0.06712]
[1766958656985,0.0241289,87632.0,87617.0,0.06712]
[1766958657188,0.0241289,87631.0,87617.0,0.06712]
[1766958657488,0.0241289,87630.0,87617.0,0.06712]
[1766958657688,0.0241289,87629.0,87617.0,0.06712]
[1766958657998,0.0241289,87628.0,87617.0,0.06712]
[1766958658194,0.0114193,87633.0,87617.0,0.06712]
[1766958658395,0.02412897,87632.0,87617.0,0.06712]
[1766958658594,0.02412897,87631.0,87617.0,0.06712]
[1766958658795,0.02412897,87630.0,87618.0,0.0114211]
[1766958659098,0.02412897,87629.0,87618.0,0.0414211]
[1766958659291,0.02412897,87628.0,87618.0,0.0414211]
[1766958659493,0.05729121,87635.0,87618.0,0.0414211]
[1766958659692,0.02412899,87634.0,87618.0,0.0414211]
[1766958659900,0.02412899,87633.0,87618.0,0.0414211]
[1766958660098,0.02412899,87632.0,87618.0,0.0414211]
[1766958660301,0.02412899,87631.0,87618.0,0.0414211]
[1766958660498,0.02412899,87630.0,87618.0,0.0414211]
[1766958660700,0.02412899,87629.0,87618.0,0.0414211]
[1766958660898,0.02412899,87628.0,87618.0,0.0414211]
[1766958661102,0.05729121,87635.0,87618.0,0.0414211]
[1766958661397,0.02412899,87634.0,87618.0,0.0414211]
[1766958661586,0.05729121,87635.0,87618.0,0.0414211]
[1766958661587,0.02412899,87633.0,87618.0,0.0414211]
[1766958661792,0.02412899,87632.0,87618.0,0.0414211]
[1766958661993,0.02412899,87631.0,87618.0,0.0414211]
[1766958662192,0.02412899,87630.0,87618.0,0.0414211]
[1766958662398,0.02412899,87629.0,87618.0,0.0414211]
[1766958662594,0.02412899,87628.0,87618.0,0.0414211]
[1766958662892,0.05729121,87635.0,87618.0,0.0414211]
[1766958663094,0.02416233,87634.0,87623.0,0.00113937]
[1766958663403,0.02416233,87633.0,87623.0,0.00113937]
[1766958663602,0.02416233,87632.0,87623.0,0.00113937]
[1766958663902,0.02416233,87631.0,87623.0,0.00113937]
[1766958664200,0.02416233,87630.0,87627.0,0.00113937]
[1766958664396,0.02416233,87629.0,87627.0,0.00113937]
[1766958664596,0.05729121,87635.0,87618.0,0.0414211]
[1766958664597,0.05729121,87635.0,87618.0,0.0114211]
[1766958664797,0.02416223,87634.0,87618.0,0.0414211]
[1766958665002,0.02416223,87633.0,87618.0,0.0414211]
[1766958665194,0.02416223,87632.0,87618.0,0.0414211]
[1766958665503,0.02416223,87631.0,87618.0,0.0414211]
[1766958665697,0.02416223,87630.0,87618.0,0.0414211]
[1766958665894,0.02416223,87629.0,87618.0,0.0414211]
[1766958666097,0.05729121,87635.0,87618.0,0.0414211]
[1766958666297,0.02416218,87634.0,87618.0,0.0414211]
[1766958666502,0.02416218,87633.0,87618.0,0.0414211]
[1766958666704,0.02416218,87632.0,87618.0,0.0414211]
[1766958666899,0.02416215,87631.0,87618.0,0.0414211]
[1766958667204,0.02416215,87630.0,87618.0,0.0414211]
[1766958667404,0.02416215,87629.0,87618.0,0.0414211]
[1766958667605,0.05729121,87635.0,87618.0,0.0414211]
[1766958677613,0.05729121,87635.0,87618.0,0.03]
[1766958679214,0.05729121,87635.0,87618.0,0.041421]
[1766958679516,0.0240598,87634.0,87618.0,0.041421]
[1766958679814,0.0240598,87633.0,87618.0,0.041421]
[1766958680013,0.0240598,87632.0,87618.0,0.041421]
[1766958680212,0.0240598,87631.0,87618.0,0.041421]
[1766958680414,0.0240598,87630.0,87618.0,0.041421]
[1766958680616,0.0240598,87629.0,87618.0,0.041421]
[1766958680807,0.0240598,87628.0,87618.0,0.041421]
[1766958681007,0.0240598,87627.0,87618.0,0.041421]
[1766958681207,0.0240598,87626.0,87618.0,0.041421]
[1766958681506,0.05729121,87635.0,87618.0,0.041421]
[1766958681706,0.02405981,87634.0,87618.0,0.041421]
[1766958681907,0.02405981,87633.0,87618.0,0.041421]
[1766958682108,0.02405981,87632.0,87618.0,0.041421]
[1766958682309,0.02405981,87631.0,87618.0,0.041421]
[1766958682608,0.02405981,87630.0,87618.0,0.041421]
[1766958682802,0.02405981,87629.0,87618.0,0.041421]
[1766958683003,0.05729121,87635.0,87618.0,0.041421]
[1766958683004,0.02405981,87628.0,87618.0,0.041421]
[1766958683199,0.02405981,87627.0,87618.0,0.041421]
[1766958683405,0.05729121,87635.0,87618.0,0.041421]
[1766958683605,0.02405993,87634.0,87618.0,0.041421]
[1766958683806,0.05729121,87635.0,87618.0,0.041421]
[1766958683807,0.02405993,87633.0,87618.0,0.041421]
[1766958684015,0.02405993,87632.0,87618.0,0.041421]
[1766958684216,0.02405993,87631.0,87618.0,0.041421]
[1766958684414,0.02405993,87630.0,87618.0,0.041421]
[1766958684618,0.02405993,87629.0,87618.0,0.041421]
[1766958684810,0.05729121,87635.0,87618.0,0.041421]
[1766958685010,0.02406004,87634.0,87618.0,0.041421]
[1766958685212,0.02406004,87633.0,87618.0,0.041421]
[1766958685411,0.02406004,87632.0,87618.0,0.041421]
[1766958685709,0.02406004,87631.0,87618.0,0.041421]
[1766958685909,0.02406004,87630.0,87618.0,0.041421]
[1766958686108,0.02406004,87629.0,87618.0,0.041421]
[1766958686313,0.05729121,87635.0,87618.0,0.041421]
[1766958686514,0.02406019,87634.0,87618.0,0.041421]
[1766958686717,0.02406019,87633.0,87618.0,0.041421]
[1766958687016,0.05729121,87635.0,87618.0,0.041421]
[1766958687017,0.02406019,87632.0,87618.0,0.041421]
[1766958687318,0.02406019,87631.0,87618.0,0.041421]
[1766958687506,0.02406019,87630.0,87618.0,0.041421]
[1766958687706,0.02406019,87629.0,87618.0,0.041421]
[1766958687902,0.05729121,87635.0,87618.0,0.041421]
[1766958688103,0.02406031,87634.0,87618.0,0.041421]
[1766958688307,0.02406031,87633.0,87618.0,0.041421]
[1766958688508,0.02406031,87632.0,87618.0,0.041421]
[1766958688709,0.02406031,87631.0,87618.0,0.041421]
[1766958688920,0.02406031,87630.0,87618.0,0.041421]
[1766958689117,0.02406031,87629.0,87618.0,0.041421]
[1766958689318,0.05729121,87635.0,87618.0,0.041421]
[1766958689519,0.0240605,87634.0,87618.0,0.041421]
[1766958689716,0.0240605,87633.0,87618.0,0.041421]
[1766958689918,0.0240605,87632.0,87618.0,0.041421]
[1766958690118,0.05729121,87635.0,87618.0,0.041421]
[1766958690119,0.0240605,87631.0,87618.0,0.041421]
[1766958690320,0.0240605,87630.0,87618.0,0.041421]
[1766958690519,0.0240605,87629.0,87618.0,0.041421]
[1766958690722,0.11477538,87630.0,87618.0,0.041421]
[1766958691020,0.02406047,87629.0,87618.0,0.041421]
[1766958691220,0.11477538,87630.0,87618.0,0.041421]
[1766958691519,0.02406047,87629.0,87618.0,0.041421]
[1766958691722,0.05729121,87635.0,87620.0,0.0114208]
[1766958691923,0.0240605,87634.0,87620.0,0.0114208]
[1766958692119,0.0240605,87633.0,87620.0,0.0114208]
[1766958692315,0.0240605,87632.0,87620.0,0.0114208]
[1766958692516,0.0240605,87631.0,87620.0,0.0114208]
[1766958692715,0.05729121,87635.0,87620.0,0.0114208]
[1766958697929,0.05729121,87635.0,87617.0,0.0685412]
[1766958698129,0.05729121,87635.0,87619.0,0.0114209]
[1766958698428,0.05729121,87635.0,87619.0,0.0414209]
[1766958702234,0.06871021,87635.0,87619.0,0.0414209]
[1766958707336,0.05729121,87635.0,87621.0,0.0114207]
[1766958712241,0.05729121,87635.0,87619.0,0.0114209]
[1766958712642,0.05729121,87635.0,87619.0,0.0414209]
[1766958714248,0.05729121,87635.0,87619.0,0.0114209]
[1766958715051,0.05729121,87635.0,87619.0,0.0414209]
[1766958722658,0.011419,87634.0,87619.0,0.0414209]
[1766958722861,0.011419,87634.0,87619.0,0.03]
[1766958723458,0.11477538,87630.0,87619.0,0.03]
[1766958724663,0.11477538,87630.0,87618.0,0.0114211]
[1766958724863,0.11477538,87630.0,87618.0,0.0414211]
[1766958731069,0.05729121,87635.0,87620.0,0.0114207]
[1766958731272,0.11477538,87630.0,87620.0,0.0114207]
[1766958732672,0.05729121,87635.0,87620.0,0.0114207]
[1766958732873,0.11477538,87630.0,87620.0,0.0114207]
[1766958734066,0.11477538,87630.0,87617.0,0.05712]
[1766958734370,0.11477538,87630.0,87617.0,0.08712]
[1766958735171,0.11477538,87630.0,87618.0,0.0114211]
[1766958735371,0.11477538,87630.0,87618.0,0.0414211]
[1766958744776,0.05729121,87635.0,87618.0,0.0414211]
[1766958745680,0.05712001,87635.0,87625.0,0.0114201]
[1766958745878,0.05712001,87635.0,87628.0,0.0114198]
[1766958746083,0.05712001,87635.0,87625.0,0.0114202]
[1766958746488,0.05712001,87635.0,87630.0,0.00130947]
[1766958746675,0.05712001,87635.0,87617.0,0.05712]
[1766958746982,0.05712001,87635.0,87617.0,0.08712]
[1766958747182,0.05712001,87635.0,87625.0,2e-07]
[1766958752482,1e-08,87635.0,87625.0,2e-07]
[1766958754284,1e-08,87635.0,87629.0,0.0114197]
[1766958755587,1e-08,87635.0,87632.0,0.00116126]
[1766958755782,1e-08,87635.0,87625.0,2e-07]
[1766958756185,1e-08,87635.0,87629.0,0.0114197]
[1766958759389,1e-08,87635.0,87626.0,0.0114201]
[1766958760486,1e-08,87635.0,87625.0,2e-07]
[1766958764389,1e-08,87635.0,87616.0,0.01159261]
[1766958764587,1e-08,87635.0,87616.0,0.04159261]
[1766958768392,1e-08,87635.0,87618.0,0.011421]
[1766958768592,1e-08,87635.0,87618.0,0.041421]
[1766958770692,1e-08,87635.0,87622.0,0.0114205]
[1766958773796,1e-08,87635.0,87619.0,0.011421]
[1766958773999,1e-08,87635.0,87619.0,0.041421]
[1766958801722,1e-08,87635.0,87619.0,0.03]
[1766958811527,0.0114191,87634.0,87619.0,0.03]
[1766958811729,0.0114197,87629.0,87611.0,0.05712]
[1766958812033,0.0114197,87629.0,87611.0,0.08712]
[1766958812325,0.0114197,87629.0,87611.0,0.03]
[1766958812726,0.0114197,87629.0,87611.0,0.03017121]
[1766958822035,0.0114197,87629.0,87608.0,0.09708]
[1766958822036,0.22953994,87621.0,87604.0,0.04104451]
[1766958822233,0.11476997,87614.0,87604.0,0.01]
[1766958822437,0.11476997,87621.0,87604.0,0.01]
[1766958822632,0.11476997,87614.0,87604.0,0.01]
[1766958822937,0.21184997,87621.0,87604.0,0.01]
[1766958823137,0.21184997,87621.0,87604.0,0.01017121]
[1766958824446,0.22327067,87621.0,87604.0,0.01017121]
[1766958824939,0.21184997,87621.0,87604.0,0.01017121]
[1766958825139,0.05712,87620.0,87604.0,0.01017121]
[1766958825947,0.05712,87620.0,87604.0,0.02159401]
[1766958832353,0.05712,87620.0,87604.0,0.01017121]
[1766958836557,0.17188997,87620.0,87604.0,0.01017121]
[1766958855081,0.02405596,87619.0,87604.0,0.01017121]
[1766958855277,0.02405596,87618.0,87604.0,0.01017121]
[1766958855477,0.17188997,87620.0,87604.0,0.01017121]
[1766958855675,0.02405596,87619.0,87604.0,0.01017121]
[1766958855974,0.02405596,87618.0,87604.0,0.01017121]
[1766958856173,0.17188997,87620.0,87604.0,0.01017121]
[1766958856480,0.02405596,87619.0,87604.0,0.01017121]
[1766958856677,0.02405596,87618.0,87604.0,0.01017121]
[1766958856879,0.17188997,87620.0,87604.0,0.01017121]
[1766958857178,0.02405596,87619.0,87604.0,0.01017121]
[1766958857380,0.02405596,87618.0,87604.0,0.01017121]
[1766958857578,0.17188997,87620.0,87604.0,0.01017121]
[1766958857876,0.02405595,87619.0,87604.0,0.01017121]
[1766958858076,0.02405595,87618.0,87604.0,0.01017121]
[1766958858274,0.17188997,87620.0,87604.0,0.01017121]
[1766958858475,0.02405595,87619.0,87604.0,0.01017121]
[1766958858669,0.02405595,87618.0,87604.0,0.01017121]
[1766958858869,0.17188997,87620.0,87604.0,0.01017121]
[1766958859069,0.02405595,87619.0,87604.0,0.01017121]
[1766958859369,0.02405595,87618.0,87604.0,0.01017121]
[1766958859674,0.17188997,87620.0,87604.0,0.01017121]
[1766958859875,0.02405595,87619.0,87604.0,0.01017121]
[1766958860079,0.02405595,87618.0,87604.0,0.01017121]
[1766958860374,0.17188997,87620.0,87604.0,0.01017121]
[1766958860575,0.02405594,87619.0,87604.0,0.01017121]
[1766958860774,0.02405594,87618.0,87604.0,0.01017121]
[1766958861075,0.17188997,87620.0,87604.0,0.01017121]
[1766958861269,0.02405594,87619.0,87604.0,0.01017121]
[1766958861470,0.02405594,87618.0,87604.0,0.01017121]
[1766958861672,0.17188997,87620.0,87604.0,0.01017121]
[1766958861877,0.02405593,87619.0,87604.0,0.01017121]
[1766958862175,0.02405593,87618.0,87604.0,0.01017121]
[1766958862368,0.17188997,87620.0,87604.0,0.01017121]
[1766958862575,0.0240559,87619.0,87604.0,0.01017121]
[1766958862773,0.0240559,87618.0,87604.0,0.01017121]
[1766958863073,0.17188997,87620.0,87604.0,0.01017121]
[1766958863380,0.02405589,87619.0,87604.0,0.01017121]
[1766958863680,0.02405589,87618.0,87604.0,0.01017121]
[1766958863882,0.17188997,87620.0,87604.0,0.01017121]
[1766958863883,0.02405589,87617.0,87604.0,0.01017121]
[1766958864080,0.17188997,87620.0,87604.0,0.01017121]
[1766958864380,0.02405588,87619.0,87604.0,0.01017121]
[1766958864567,0.02405588,87618.0,87604.0,0.01017121]
[1766958864769,0.02405588,87617.0,87604.0,0.01017121]
[1766958864963,0.02405588,87616.0,87605.0,0.0114228]
[1766958865179,0.05712,87615.0,87605.0,0.0114228]
[1766958865781,0.05712,87615.0,87604.0,0.00017121]
[1766958868079,0.05712,87615.0,87604.0,0.03017121]
[1766958898009,0.05712,87615.0,87604.0,0.04159401]
[1766958899204,0.05712,87615.0,87604.0,0.03017121]
[1766958947262,0.05712,87615.0,87604.0,0.00017121]
[1766958954156,0.05712,87615.0,87604.0,1.21e-06]
[1766958962168,0.05712,87615.0,87604.0,0.01142401]
[1766958983687,0.05712,87615.0,87597.0,0.15872666]
[1766958983886,0.05712,87615.0,87597.0,0.18872666]
[1766958984187,0.05712,87615.0,87604.0,0.0114228]
[1766958989695,0.00017121,87618.0,87604.0,0.0114228]
[1766958989894,0.02407458,87617.0,87604.0,0.0114228]
[1766958990094,0.00017121,87618.0,87607.0,0.0114225]
[1766958990395,0.02407422,87617.0,87607.0,0.0114225]
[1766958990594,0.00017121,87618.0,87607.0,0.0114225]
[1766958990897,0.02407422,87617.0,87607.0,0.0114225]
[1766958991108,0.00017121,87618.0,87607.0,0.0114225]
[1766958991302,0.02407395,87617.0,87607.0,0.0114225]
[1766958991495,0.00017121,87618.0,87607.0,0.0114225]
[1766958991805,0.02407395,87617.0,87607.0,0.0114225]
[1766958992006,0.00017121,87618.0,87607.0,0.0114225]
[1766958992190,0.02407393,87617.0,87607.0,0.0114225]
[1766958992397,0.05712,87617.0,87607.0,0.0114225]
[1766958992898,0.05712,87617.0,87601.0,0.00017121]
[1766958993098,0.05712,87617.0,87601.0,0.03017121]
[1766958994208,0.05712,87617.0,87607.0,0.0114225]
[1766958997913,0.05712,87617.0,87603.0,0.011423]
[1766958998110,0.05712,87617.0,87603.0,0.041423]
[1766959002313,0.05712,87617.0,87605.0,0.0114227]